Cogmind - Beta 13 @@@ ROGUE MODE // 2024.04.01 @ 17:16:22 Player: Not2Dey Result: Destroyed by G-47 Trooper with Particle Gun Performance ------------- Evolutions (2) 1000 Regions Visited (6) 1200 Robots Destroyed (37) 185 Value Destroyed (1104) 1104 Prototype IDs (0) 0 Alien Tech Used (0) 0 Bonus (0) 0 TOTAL SCORE: 3489 Bonus ------- None Cogmind --------- Core Integrity 0/550 Matter 300/300 Energy 95/100 System Corruption 0% Temperature Cool (9) Movement Walking (120) Location -8/Storage Parts ------- > --- POWER (2) -------- (None) > --- PROPULSION (2) --- Aluminum Leg Aluminum Leg > --- UTILITY (3) ------ Targeting Computer Improved Targeting Computer > --- WEAPON (4) ------- Heavy Flail > --- INVENTORY (5) ---- Aluminum Leg Small Storage Unit Beam Rifle Particle Gun Peak State ------------ > --- POWER ------------ (None) > --- PROPULSION ------- Aluminum Leg Carbon-fiber Leg > --- UTILITY ---------- Targeting Computer Improved Targeting Computer Hardened Medium Armor Plating > --- WEAPON ----------- Beam Rifle Particle Gun Heavy Assault Rifle Minigun > --- INVENTORY -------- Aluminum Leg Aerolev Unit Small Storage Unit Long-range Tractor Beam Particle Gun [Rating: 20] Favorites ----------- Power Ion Engine Engine Ion Engine Power Core Light Nuclear Core Propulsion Aluminum Leg Leg Aluminum Leg Wheel Wheel Utility Targeting Computer Device Heat Sink Storage Small Storage Unit Processor Targeting Computer Protection Hardened Medium Armor Plating Weapon Assault Rifle Energy Gun Particle Gun Ballistic Gun Assault Rifle Launcher Grenade Launcher Special Weapon Mining Laser Impact Weapon Heavy Flail Build | -11 -10 -10 -10 -9 -8 -8 ------- Run | Yrd Mat Min Exi Min Mat Sto Slots Evolved 4 | . . . . . 4 . Power 1 | . . . . . 1 . Propulsion . | . . . . . . . Utility 1 | . . . . . 1 . Weapon 2 | . . . . . 2 . Parts Attached 53 | 7 18 1 2 . 22 3 Power 6 | 2 4 . . . . . Engine 5 | 2 3 . . . . . Core 1 | . 1 . . . . . Reactor . | . . . . . . . Propulsion 9 | 2 2 . . . 4 1 Treads . | . . . . . . . Leg 6 | . 2 . . . 3 1 Wheel 3 | 2 . . . . 1 . Hover . | . . . . . . . Flight . | . . . . . . . Utility 13 | 1 6 . 1 . 4 1 Device 2 | 1 . . . . 1 . Storage 6 | . 4 . 1 . 1 . Processor 3 | . 2 . . . 1 . Hackware . | . . . . . . . Protection 2 | . . . . . 1 1 Artifact . | . . . . . . . Weapon 25 | 2 6 1 1 . 14 1 Energy Gun 5 | 1 1 . . . 3 . Energy Cannon . | . . . . . . . Ballistic Gun 14 | 1 2 1 1 . 9 . Ballistic Cannon . | . . . . . . . Launcher 4 | . 3 . . . 1 . Special Weapon 1 | . . . . . 1 . Impact Weapon 1 | . . . . . . 1 Slashing Weapon . | . . . . . . . Piercing Weapon . | . . . . . . . Special Melee Weapon . | . . . . . . . Unidentified Prototypes . | . . . . . . . Parts Lost 20 | . 4 . . 1 10 5 Power 1 | . . . . . 1 . Propulsion 4 | . 1 . . 1 1 1 Utility 4 | . 2 . . . 1 1 Weapon 11 | . 1 . . . 7 3 Highest Loss Streak 7 | . 3 . . 1 7 5 To Critical Strikes . | . . . . . . . Average Slot Usage (%) 86 | . 91 100 99 89 69 78 Engine 8 | . 9 14 14 14 3 . Leg 20 | . 20 28 28 17 11 18 Wheel 1 | . 6 . . . . . Storage 6 | . 10 . 5 14 4 . Processor 16 | . 7 28 21 14 16 18 Protection 1 | . . . . . 3 7 Energy Gun 11 | . 12 14 14 14 7 9 Ballistic Gun 14 | . 6 14 14 14 19 17 Launcher 1 | . 7 . . . . . Naked Turns . | . . . . . . . Heaviest Build 52 | 8 52 10 15 15 20 20 Greatest Support 25 | 20 20 20 20 20 25 25 Greatest Overweight (x) 3 | . 2 . . 1 3 . Average Overweight (x) . | . . . . . . . Largest Inventory Capacity 20 | 5 20 5 8 8 8 5 Average Capacity 5 | 5 5 5 6 8 6 5 Most Carried 6 | 5 5 5 5 6 6 5 Average Carried 4 | 2 3 4 4 5 4 4 Final Capacity 8 | 5 5 5 8 8 5 5 Final Carried 6 | 3 5 5 5 6 5 4 Class Distribution -------------------- 71% | Mutant 16% | Scavenger-Gunner 12% | Gunner Dominant Class ---------------- Mutant | -10/Materials Mutant | -10/Mines Mutant | -10/Exiles Mutant | -9/Mines Gunner | -8/Materials Scavenger-Gunner | -8/Storage Resources | -11 -10 -10 -10 -9 -8 -8 ----------- Run | Yrd Mat Min Exi Min Mat Sto Matter Collected 991 | 273 214 . 29 45 386 44 Remotely . | . . . . . . . Salvage Created 1219 | 37 501 . . 57 461 163 Parts 71 | 4 35 . . 3 24 5 Haulers Intercepted . | . . . . . . . Recyclers Shooed 1 | . . . . . 1 . Parts Field Recycled . | . . . . . . . Retrieved Matter . | . . . . . . . Parts Self-Destructed . | . . . . . . . Prevented . | . . . . . . . Kills | -11 -10 -10 -10 -9 -8 -8 ------- Run | Yrd Mat Min Exi Min Mat Sto Combat Hostiles Destroyed 31 | 1 12 . . 4 10 4 Melee 1 | . . . . . . 1 Guns 24 | 1 9 . . 4 9 1 AOE 4 | . 3 . . . 1 . Classes Destroyed 8 | 1 4 . . . 3 . Worker 3 | . 3 . . . . . Builder 1 | . 1 . . . . . Mechanic 1 | . . . . . 1 . Watcher 1 | . 1 . . . . . Swarmer 8 | . 3 . . 4 . 1 Grunt 18 | 1 9 . . . 5 3 Sentry 4 | . . . . . 4 . Hunter 1 | . . . . . 1 . Best Kill Streak 6 | 1 6 . . 2 4 2 Combat Bots Only 4 | 1 4 . . 2 3 2 Max Kills in Single Turn 4 | 1 4 . . 1 2 1 Gunslinging 1 | . . . . . 1 . Exploded 2 | . 2 . . . 1 . Melee 1 | . . . . . . 1 Uniques/NPCs Destroyed . | . . . . . . . Combat | -11 -10 -10 -10 -9 -8 -8 -------- Run | Yrd Mat Min Exi Min Mat Sto Hostile Shots Fired 377 | 4 80 . . 42 138 113 Missed 115 | 1 25 . . 8 46 35 Damage Taken 3105 | 36 714 . . 263 1296 796 Core 803 | 12 160 . . 73 419 139 Absorbed by Shields . | . . . . . . . Core Remaining (%) 48 | 95 . . . 2 . . Volleys Fired 85 | 3 35 . . 10 33 4 Largest 4 | 2 2 . . 2 4 3 Hottest 185 | 60 95 . . 85 185 111 Shots Fired 190 | 6 61 . . 20 92 11 Gun 182 | 6 60 . . 20 85 11 Cannon . | . . . . . . . Launcher 4 | . 1 . . . 3 . Special 4 | . . . . . 4 . Kinetic 117 | 3 33 . . 10 63 8 Thermal 60 | 3 27 . . 10 17 3 Explosive 4 | . 1 . . . 3 . Electromagnetic 9 | . . . . . 9 . Robot Hit Streak 20 | 2 8 . . 2 20 9 Robot Miss Streak 3 | 1 3 . . 3 2 1 Penetration Max . | . . . . . . . Secondary Targets 5 | . 3 . . 1 1 . Max Gunslinging Chain 1 | . 1 . . 1 1 . Shots Hit Robots 131 | 3 36 . . 10 70 12 Core Hits 67 | 2 27 . . 4 31 3 Critical Kills 1 | . 1 . . . . . Critical Parts Destroyed . | . . . . . . . Critical Strikes 2 | . 1 . . . 1 . Burn 1 | . . . . . 1 . Destroy 1 | . 1 . . . . . Melee Attacks 8 | . . . . . . 8 Impact 8 | . . . . . . 8 Slashing . | . . . . . . . Piercing . | . . . . . . . Sneak Attacks . | . . . . . . . Combat Hostiles . | . . . . . . . Follow-up Attacks . | . . . . . . . Damage Inflicted 2568 | 24 994 . . 135 1089 326 Guns 1665 | 24 469 . . 135 892 145 Cannons . | . . . . . . . Explosions 646 | . 525 . . . 121 . Melee 181 | . . . . . . 181 Ramming 4 | . . . . . 4 . Kinetic 1059 | 14 256 . . 40 637 112 Thermal 568 | 10 213 . . 95 217 33 Explosive 646 | . 525 . . . 121 . Electromagnetic 110 | . . . . . 110 . Impact 181 | . . . . . . 181 Slashing . | . . . . . . . Piercing . | . . . . . . . Highest Corruption . | . . . . . . . Average Corruption . | . . . . . . . Corruption Purged . | . . . . . . . Corruption Blocked . | . . . . . . . Overload Shots . | . . . . . . . Overflow Damage 101 | . 38 . . . 2 61 Projectiles . | . . . . . . . Explosions 40 | . 38 . . . 2 . Melee 61 | . . . . . . 61 Knockbacks 1 | . . . . . . 1 Impact 1 | . . . . . . 1 Kinetic . | . . . . . . . Secondary . | . . . . . . . Self-Inflicted Damage 113 | . 113 . . . . . Shots 2 | . 2 . . . . . Rammed . | . . . . . . . Targets Rammed 2 | . . . . . 2 . Kicked 2 | . . . . . 2 . Crushed . | . . . . . . . Highest Temperature 389 | 32 186 . . 120 389 58 Average Temperature 72 | 18 49 . . 60 108 30 Received Heat Transfer 1074 | 18 291 . . . 558 207 Effects 1 | . . . . . 1 . Energy Bleed 1 | . . . . . 1 . Siege Activations . | . . . . . . . Robots Corrupted . | . . . . . . . Combat Hostiles . | . . . . . . . Parts Fried 2 | . . . . . . 2 Impact Corruptions 3 | . . . . . . 3 Robots Melted . | . . . . . . . Combat Hostiles . | . . . . . . . Parts Melted 3 | . 1 . . . 2 . Heat Transferred 1436 | 25 521 . . 222 594 74 Parts Sabotaged . | . . . . . . . Parts Stolen . | . . . . . . . Parts Stripped . | . . . . . . . Power Chain Reactions . | . . . . . . . Alert | -11 -10 -10 -10 -9 -8 -8 ------- Run | Yrd Mat Min Exi Min Mat Sto Peak Influence 221 | 20 206 79 . 125 221 131 Initial 79 | . 13 79 . . 48 29 Average 89 | 5 119 79 . 74 92 69 Maximum Alert Level 1 | . 1 . . . 1 . Low Security (%) 93 | 100 84 100 . 100 93 100 Level 1 6 | . 15 . . . 6 . Level 2 . | . . . . . . . Level 3 . | . . . . . . . Level 4 . | . . . . . . . Level 5 . | . . . . . . . High Security . | . . . . . . . Max Security . | . . . . . . . Squads Dispatched 6 | . 2 . . . 3 1 Investigation 1 | . . . . . 1 . Extermination . | . . . . . . . Reinforcement 5 | . 2 . . . 2 1 Assault . | . . . . . . . Garrison . | . . . . . . . Intercept . | . . . . . . . Searches Triggered . | . . . . . . . Construction Impeded 1 | . . . . . 1 . Haulers Reinforced . | . . . . . . . Active Scanning Responses . | . . . . . . . Cargo Convoy Interrupts . | . . . . . . . Stealth | -11 -10 -10 -10 -9 -8 -8 --------- Run | Yrd Mat Min Exi Min Mat Sto Distress Signals 4 | . 2 . . . 2 . Communications Jammed . | . . . . . . . Distress Signals . | . . . . . . . Times Spotted 54 | 1 19 . . 6 18 10 Peak Tracking Total 6 | 1 6 . . 4 4 6 Tactical Retreats 2 | . . . . 1 . 1 Traps | -11 -10 -10 -10 -9 -8 -8 ------- Run | Yrd Mat Min Exi Min Mat Sto Traps Triggered . | . . . . . . . Indirectly . | . . . . . . . Trap Hack Attempts . | . . . . . . . Triggered . | . . . . . . . Disarmed . | . . . . . . . Reprogrammed . | . . . . . . . Reused . | . . . . . . . Traps Extracted . | . . . . . . . Installed . | . . . . . . . Triggered . | . . . . . . . Machines | -11 -10 -10 -10 -9 -8 -8 ---------- Run | Yrd Mat Min Exi Min Mat Sto Machines Disabled 1 | . 1 . . . . . Max in Single Turn 1 | . 1 . . . . . Machines Repaired . | . . . . . . . Machines Dismantled . | . . . . . . . Machines Sabotaged . | . . . . . . . Overloaded Fab Kills . | . . . . . . . Hacking | -11 -10 -10 -10 -9 -8 -8 --------- Run | Yrd Mat Min Exi Min Mat Sto Machines Accessed 7 | . . . 1 1 4 1 Terminals 4 | . . . . 1 2 1 Fabricators . | . . . . . . . Repair Stations . | . . . . . . . Recycling Units 1 | . . . . . 1 . Scanalyzers 1 | . . . . . 1 . Garrison Access . | . . . . . . . Total Hacks 44 | . . . 23 6 10 5 Successful 39 | . . . 23 2 10 4 Failed 5 | . . . . 4 . 1 Catastrophic . | . . . . . . . Database Lockouts . | . . . . . . . Manual . | . . . . . . . Terminals 16 | . . . . 6 5 5 Fabricators . | . . . . . . . Repair Stations . | . . . . . . . Recycling Units 3 | . . . . . 3 . Scanalyzers 2 | . . . . . 2 . Garrison Access . | . . . . . . . Terminal Hacks 34 | . . . 23 2 5 4 Record 32 | . . . 23 2 3 4 Alert Level 1 | . . . . . 1 . Zone Layout 1 | . . . . . 1 . Fabricator Hacks . | . . . . . . . Repair Station Hacks . | . . . . . . . Recycling Unit Hacks 3 | . . . . . 3 . Recycle Component 1 | . . . . . 1 . Process 1 | . . . . . 1 . Report Inventory 1 | . . . . . 1 . Scanalyzer 2 | . . . . . 2 . Insert Component 1 | . . . . . 1 . Analyze 1 | . . . . . 1 . Garrison Access Hacks . | . . . . . . . Unauthorized Hacks . | . . . . . . . Terminals . | . . . . . . . Fabricators . | . . . . . . . Repair Stations . | . . . . . . . Recycling Units . | . . . . . . . Scanalyzers . | . . . . . . . Garrison Access . | . . . . . . . Data Cores Recovered . | . . . . . . . Used . | . . . . . . . Hacking Detections 5 | . . . . 1 3 1 Full Trace Events 1 | . . . . . 1 . Feedback Events . | . . . . . . . Feedback Blocked . | . . . . . . . Robot Schematics Acquired . | . . . . . . . Robots Built . | . . . . . . . Authchips . | . . . . . . . Time . | . . . . . . . Total Robot Build Rating . | . . . . . . . Part Schematics Acquired 1 | . . . . . 1 . Parts Built . | . . . . . . . Authchips . | . . . . . . . Time . | . . . . . . . Total Part Build Rating . | . . . . . . . Parts Repaired . | . . . . . . . Time . | . . . . . . . Parts Recycled 1 | . . . . . 1 . Recycled Matter 16 | . . . . . 16 . Retrieved Matter . | . . . . . . . Retrieved Components . | . . . . . . . Parts Scanalyzed 1 | . . . . . 1 . Part Schematics Acquired 1 | . . . . . 1 . Parts Damaged . | . . . . . . . Bothacking | -11 -10 -10 -10 -9 -8 -8 ------------ Run | Yrd Mat Min Exi Min Mat Sto Used RIF Installer . | . . . . . . . Robots Hacked . | . . . . . . . Non-combat . | . . . . . . . Combat . | . . . . . . . Robot Hacks Applied . | . . . . . . . Relay Couplers Released . | . . . . . . . Fabnet Peak Effective % . | . . . . . . . Robots Rewired . | . . . . . . . Allies Hacked . | . . . . . . . Hacks Repelled . | . . . . . . . Allies | -11 -10 -10 -10 -9 -8 -8 -------- Run | Yrd Mat Min Exi Min Mat Sto Total Allies . | . . . . . . . Largest Group . | . . . . . . . Highest-Rated Group . | . . . . . . . Highest-Rated Ally . | . . . . . . . Total Orders . | . . . . . . . Ally Attacks . | . . . . . . . Total Damage . | . . . . . . . Kills . | . . . . . . . Allies Corrupted . | . . . . . . . Allies Melted . | . . . . . . . Intel | -11 -10 -10 -10 -9 -8 -8 ------- Run | Yrd Mat Min Exi Min Mat Sto Robot Analysis Total . | . . . . . . . Derelict Logs Recovered 2 | . . 1 . 1 . . Drone Launches . | . . . . . . . Drone Recoveries . | . . . . . . . Exploration | -11 -10 -10 -10 -9 -8 -8 ------------- Run | Yrd Mat Min Exi Min Mat Sto Turns Passed 2998 | 132 602 130 875 228 810 221 Spaces Moved 2087 | 148 402 106 724 120 470 117 Core 145 | 51 . . . . 94 . Treads . | . . . . . . . Legs 1717 | . 277 106 724 120 373 117 Wheels 225 | 97 125 . . . 3 . Hover . | . . . . . . . Flight . | . . . . . . . Fastest Speed 50 | 50 80 120 120 120 50 120 Average Speed 118 | 69 107 120 120 163 127 120 Slowest Speed 260 | 80 260 120 120 190 200 120 Overloaded Moves . | . . . . . . . Propulsion Burnouts . | . . . . . . . Robots Hopped . | . . . . . . . Cave-ins Triggered . | . . . . . . . Exploration Rate (%) 29 | 6 40 21 80 30 21 10 Regions Visited 6 Branch Regions 4 Pre-discovered Areas 1 | . . . 1 . . . Known Exits Taken 1 | . . 1 . . . . Unknown Exits Taken 5 | 1 1 . 1 1 1 . Scrap Searched . | . . . . . . . Spaces Dug 1 | . . . . . . 1 Terrain Destroyed 32 | . 18 . . . 13 1 Melee 1 | . . . . . . 1 Projectile 1 | . . . . . 1 . AOE 30 | . 18 . . . 12 . Terrain Rammed . | . . . . . . . Walls Destroyed . | . . . . . . . Machines Disabled . | . . . . . . . Actions | -11 -10 -10 -10 -9 -8 -8 --------- Run | Yrd Mat Min Exi Min Mat Sto Total 2460 | 172 522 109 731 132 614 180 Wait 122 | . 28 1 . 2 49 42 Move 2081 | 147 401 105 723 119 469 117 Hop . | . . . . . . . Pick Up 62 | 12 19 1 3 1 23 3 Fast Attach . | . . . . . . . Attach 48 | 6 16 1 2 . 20 3 Detach 16 | . 9 . 1 . 6 . Swap 5 | 1 2 . . . 2 . Drop 31 | 3 12 1 2 . 10 3 Fire 85 | 3 35 . . 10 33 4 Melee 8 | . . . . . . 8 Ram . | . . . . . . . Kick 2 | . . . . . 2 . Crush . | . . . . . . . Escape Stasis . | . . . . . . . Rewire . | . . . . . . . Trap . | . . . . . . . Miscellaneous . | . . . . . . . Route ------- -11/Scrapyard -10/Materials -10/Mines -10/Exiles -9/Mines -8/Materials -8/Storage History --------- Turn | Location | Event 2 | -11/Scrapyard | Met Revision 17 84 | -11/Scrapyard | Discovered new exit (range 8) 133 | -11/Scrapyard | Entered Materials 275 | -10/Materials | Core integrity fell below 50% 311 | -10/Materials | Build established: Mutant 311 | -10/Materials | Lost 3 parts (1n1u1w) 557 | -10/Materials | Discovered new exit (range 14) 735 | -10/Materials | Entered Mines 803 | -10/Mines | Assembled infested the area 828 | -10/Mines | Identified exit to Exiles 857 | -10/Mines | Deemed a non-threat by the Exiles lab entrance 865 | -10/Mines | Entered Exiles 928 | -10/Exiles | Met 8R-AWN 953 | -10/Exiles | Met EX-HEX 1033 | -10/Exiles | Met EX-DEC 1046 | -10/Exiles | Learned location of Zion (-7) 1173 | -10/Exiles | Discovered new exit (range 14) 1441 | -10/Exiles | Visited The Gauntlet 1740 | -10/Exiles | Entered Mines 1748 | -9/Mines | Learned Materials emergency access door positions 1803 | -9/Mines | Core integrity fell below 20% 1909 | -9/Mines | Discovered new exit (range 11) 1968 | -9/Mines | Entered Materials 1968 | -8/Materials | Evolved 4 slots: Power x1, Utility x1, Weapon x2 2270 | -8/Materials | Core integrity fell below 50% 2295 | -8/Materials | Lost 7 parts (1p1n5w) 2662 | -8/Materials | Discovered new exit (range 7) 2778 | -8/Materials | Entered Storage 2790 | -8/Storage | Build established: Scavenger-Gunner 2958 | -8/Storage | Core integrity fell below 20% 2999 | -8/Storage | Destroyed by G-47 Trooper with Particle Gun Last Messages --------------- G-47 Trooper knocked back. G-47 Trooper system terminally corrupted. Imp. Heat Sink fried. G-47 Trooper destroyed. Acquired 12 matter. Connecting with Terminal... Carbon-fiber Leg destroyed. Hrd. Medium Armor Plating destroyed. Acquired 12 matter. Particle Gun destroyed. Hvy. Assault Rifle destroyed. Destroyed Flight Unit. Destroyed Lgt. Ion Engine. S-10 Pest system corrupted by crushing effect. S-10 Pest system terminally corrupted. Lgt. Assault Rifle fried. Critical hit (Burn: +37). Hvy. Assault Rifle destroyed. [Achievement: First Step to Greatness] Map ----- +----------------------------------------------------+ | | | | | | | | | | | ????????????????????????????????? | | ????????????????????????????????? | | ????????????????????????????????? | | ????????????????????????????????? | | ????????????????????????????????? | | ????????????????????????????????? | | ????????????????????????????????? | | ????????????????????????????????? | | ????????????????????????????????? | | ???#####????????????????????????? | | ???# #????????????????????????? | | ???# #????????????????????????? | | ???# #????????????????????????? | | ???# ##########???????????????? | | ???# # #???????????????? | | ??## # """ #???????????????? | | ??#T # """ #???????????????? | | ??## s# """ #???????????????? | | ???# %s[ o #???????????????? | | ???# =gs= """ #???????????????? | | ???# #@ """ #???????????????? | | ???# # """ #???????????????? | | ???# # #???????????????? | | ???# ##########???????????????? | | ???# #????????????????????????? | | ???# #????????????????????????? | | ???# #????????????????????????? | | ???# #????????????????????????? | | ???# #????????????????????????? | | ???# #????????????????????????? | | ?### #????????????????????????? | | ?#"" #????????????????????????? | | ?#T #????????????????????????? | | ?### #????????????????????????? | | ???# #????????????????????????? | | ???# + ???????????????????????? | | ???# # "?????????????????????? | | ???# # ????????????????????? | | ???# #?# ##???????????????????? | | ???# #??##????????????????????? | | ???# #????????????????????????? | | ???# #????????????????????????? | | ???# #????????????????????????? | | ???# #????????????????????????? | | ???# #????????????????????????? | +----------------------------------------------------+ Best States ------------- Heat Dissipation 35 Energy Generation 14 Energy Capacity 350 Matter Stores 300 Matter Capacity 350 Sight Range 16 Terrain Scan Density 85 Armor Coverage 225 Evasion (%) 58 Targeting Accuracy 11 Item Schematics ----------------- Lrn. Tractor Beam | -8/Materials | Scanalyzed Robot Schematics ------------------ None Fabricated ------------ Nothing Alien Tech Used ----------------- None Achievements -------------- Close Call Crack Shot First Step to Greatness Librarian One Hack Too Far Tourist Uninvited Guest Challenges ------------ None Game ------ Seed MasterSwordMicrothruster Manual? 0 Play Time 01:23:04 Cumulative 1.3 hours Start 2024.04.01 @ 10:14:38 End 2024.04.01 @ 17:16:22 Sessions 3 Manual Loads 0 Difficulty Rogue Special Mode None Game No. 1 Rogue 1 Adventurer 0 Explorer 0 Win Type - Total 0 Types 0/0/0/0/0/0/0/0/0 Lore% 5 Gallery% 2 Achievement% 2 Wizard Run 0 Options --------- Layout 1 ASCII 0 Keyboard 0 Movement Arrows Keybinds 0 Fullscreen 1 Font 36/Smallcaps Map View 25x21 Zoom Use 90% Tactical HUD 0 Map Filters NONE Filters NONE Steam 1 RUN: f5dcfe2a-087f-40ab-bd2a-a9a8cb2ea914